bitfinex-derivatives/quotes_ETHF0:USTF0_20241018
["timestamp","ask_amount","ask_price","bid_price","bid_amount"]
[1729225804224,0.8479,2621.3,2621.2,1.76163]
[1729225806028,1.38,2621.4,2621.3,0.38162]
[1729225806518,6.19679,2621.5,2621.3,2.17722]
[1729225807518,6.19679,2621.5,2621.4,0.3816]
[1729225808315,6.19679,2621.5,2621.3,1.7956]
[1729225808524,5.8152,2621.5,2621.4,0.3816]
[1729225809029,4.4352,2621.5,2621.4,1.7616]
[1729225809425,4.81679,2621.5,2621.4,1.7616]
[1729225809726,6.19679,2621.5,2621.4,1.38]
[1729225809919,5.8152,2621.5,2621.3,1.38]
[1729225810119,1.7616,2621.4,2621.3,1.38]
[1729225810421,1.7616,2621.4,2620.9,0.4226]
[1729225810422,1.38,2621.4,2620.9,0.4226]
[1729225810615,3.2078,2621.2,2621.1,1.76165]
[1729225810811,3.58943,2621.2,2621.1,1.76165]
[1729225811916,3.2078,2621.2,2621.1,1.76165]
[1729225812120,3.58943,2621.2,2621.1,1.38]
[1729225813129,4.5878,2621.2,2620.9,0.4226]
[1729225813426,1.38,2621.0,2620.9,0.80427]
[1729225813826,2.58276,2621.0,2620.9,0.38167]
[1729225814123,2.2011,2621.0,2620.9,0.38167]
[1729225814723,5.4089,2621.0,2620.9,0.38167]
[1729225815425,5.4089,2621.0,2620.9,1.76167]
[1729225815925,5.4089,2621.0,2620.8,1.38]
[1729225816124,1.76168,2620.9,2620.7,2.163]
[1729225816324,1.76169,2620.8,2620.6,1.76172]
[1729225816520,1.76169,2620.8,2620.7,1.38]
[1729225816731,1.76169,2620.8,2620.6,1.76172]
[1729225817026,1.76169,2620.8,2620.7,1.38]
[1729225817726,1.76169,2620.8,2620.7,0.38171]
[1729225817933,1.38,2620.8,2620.7,0.38171]
[1729225818119,1.76169,2620.8,2620.7,1.76171]
[1729225818520,4.0289,2621.0,2620.7,1.38]
[1729225818828,4.0289,2621.0,2620.9,1.76168]
[1729225819224,3.2078,2621.0,2620.9,1.76168]
[1729225819428,1.38,2621.2,2620.9,1.38]
[1729225819631,1.38,2621.2,2621.1,1.76165]
[1729225819829,1.76163,2621.2,2621.1,1.76165]
[1729225820037,1.76163,2621.2,2621.1,1.38]
[1729225820422,1.38,2621.2,2621.1,1.38]
[1729225820632,1.38,2621.2,2621.1,1.76165]
[1729225821633,1.76163,2621.2,2621.1,1.76165]
[1729225822035,1.38,2621.2,2621.1,1.76165]
[1729225822421,1.76163,2621.2,2621.1,0.38165]
[1729225822631,1.38,2621.2,2621.1,0.38165]
[1729225823622,1.76163,2621.2,2621.1,0.38165]
[1729225823833,1.38,2621.2,2621.1,0.38165]
[1729225824136,1.76164,2621.2,2621.0,0.38166]
[1729225824334,4.5878,2621.1,2621.0,0.38166]
[1729225827425,3.2078,2621.1,2621.0,0.38166]
[1729225827629,4.5878,2621.1,2621.0,1.76166]
[1729225828126,1.38,2621.1,2621.0,1.76166]
[1729225828542,1.38,2621.2,2621.0,1.38]
[1729225828741,1.38,2621.2,2621.1,0.38165]
[1729225829036,1.38,2621.2,2621.1,1.76165]
[1729225830230,1.38,2621.2,2621.1,0.38165]
[1729225830643,1.8061,2621.3,2621.2,0.38163]
[1729225831538,1.8061,2621.3,2621.2,1.76163]
[1729225832642,2.18772,2621.3,2621.2,0.38163]
[1729225834734,1.8061,2621.3,2621.1,0.38164]
[1729225834940,1.38,2621.2,2620.9,0.38167]
[1729225835137,0.4261,2621.3,2620.5,0.4168]
[1729225835138,1.38,2621.0,2620.5,0.4168]
[1729225835441,3.2078,2621.1,2620.7,1.38]
[1729225835442,1.38,2620.8,2620.7,1.38]
[1729225835745,1.38,2620.8,2620.7,1.76171]
[1729225836547,1.2274,2620.9,2620.8,0.38169]
[1729225836739,2.6074,2620.9,2620.8,1.76169]
[1729225836940,1.2274,2620.9,2620.8,1.76169]
[1729225845644,4.69832793,2620.9,2620.8,1.76169]
[1729225845853,1.2274,2620.9,2620.8,1.76169]
[1729225852555,1.2274,2620.9,2620.8,1.7598145]
[1729225855060,3.2078,2621.2,2621.1,0.38165]
[1729225855245,3.2078,2621.2,2621.1,1.76165]
[1729225858754,1.38,2621.3,2621.1,1.38]
[1729225859051,1.38,2621.3,2621.2,0.38163]
[1729225860265,0.8505,2621.4,2621.3,0.38162]
[1729225860564,0.8505,2621.4,2621.3,1.76162]
[1729225863161,4.35261986,2621.4,2621.3,1.76162]
[1729225863465,0.8505,2621.4,2621.3,1.76162]
[1729225864953,4.35259982,2621.4,2621.3,1.76162]
[1729225866254,0.8505,2621.4,2621.3,1.76162]
[1729225866656,4.35259982,2621.4,2621.3,1.76162]
[1729225866861,0.8505,2621.4,2621.3,1.76162]
[1729225867059,4.35259982,2621.4,2621.3,1.76162]
[1729225867263,0.8505,2621.4,2621.3,1.76162]
[1729225870458,3.6029,2621.5,2621.4,0.3816]
[1729225870661,3.6029,2621.5,2621.4,1.7616]
[1729225871261,3.2078,2621.5,2621.4,1.7616]
[1729225872872,3.2078,2621.5,2621.4,11.576]
[1729225873169,0.8268,2621.7,2621.6,0.38157]
[1729225873353,0.8268,2621.7,2621.6,1.76157]
[1729225874357,0.3882,2621.9,2621.6,1.38]
[1729225874561,0.3882,2621.9,2621.8,1.76155]
[1729225876056,4.36018712,2621.9,2621.8,1.76155]
[1729225876262,3.88620476,2621.9,2621.8,1.76155]
[1729225876661,0.3882,2621.9,2621.8,1.76155]
[1729225876863,3.88620476,2621.9,2621.8,1.76155]
[1729225877068,0.3882,2621.9,2621.8,1.76155]
[1729225885069,0.3882,2621.9,2621.8,0.38155]
[1729225885269,0.3882,2621.9,2621.8,1.76155]
[1729225889673,3.2078,2622.0,2621.8,1.38]
[1729225889884,3.2078,2622.0,2621.9,1.76153]
[1729225890071,3.6282,2622.0,2621.9,1.76153]
[1729225890271,0.4204,2622.0,2621.9,1.76153]
[1729225894276,0.4204,2622.0,2621.9,5.57513]
[1729225894483,0.7862,2622.1,2622.0,0.38152]
[1729225894681,0.7862,2622.1,2622.0,1.76152]
[1729225894882,0.7862,2622.1,2622.0,5.96872]
[1729225895482,0.7862,2622.1,2622.0,2.15512]
[1729225895684,0.7862,2622.1,2622.0,5.96872]
[1729225896778,0.7862,2622.1,2622.0,2.15512]
[1729225897283,0.7862,2622.1,2622.0,5.96872]
[1729225898890,0.3974,2622.1,2622.0,5.96872]
[1729225900586,0.833,2622.3,2622.2,0.38149]
[1729225900789,0.833,2622.3,2622.2,1.76149]
[1729225902187,0.833,2622.3,2622.2,3.14149]
[1729225902391,3.2078,2622.4,2622.3,0.38147]
[1729225902592,3.2078,2622.4,2622.3,3.14147]
[1729225904789,3.5983,2622.5,2622.4,0.38146]
[1729225904981,3.5983,2622.5,2622.4,1.76146]
[1729225905181,3.2078,2622.5,2622.4,1.21666]
[1729225905381,3.2078,2622.5,2622.4,3.97666]
[1729225906392,3.2078,2622.5,2622.4,2.59666]
[1729225908495,3.2078,2622.5,2622.4,2.16696]
[1729225909690,3.2078,2622.5,2622.3,0.38147]
[1729225909691,0.38146,2622.4,2622.3,0.38147]
[1729225909896,2.2089,2622.4,2622.3,1.38]
[1729225910092,1.21037,2622.4,2622.3,1.38]
[1729225911591,4.41817,2622.4,2622.3,1.38]
[1729225912897,4.0367,2622.4,2622.3,1.76147]
[1729225913396,0.8289,2622.4,2622.3,1.76147]
[1729225915698,4.70836476,2622.4,2622.2,0.38147]
[1729225915892,0.4095,2622.3,2622.2,0.38149]
[1729225917389,0.4095,2622.3,2622.2,1.76149]
[1729225918393,3.90750476,2622.3,2622.2,1.76149]
[1729225918589,0.4095,2622.3,2622.2,1.76149]
[1729225920297,3.90750476,2622.3,2622.2,1.76149]
[1729225920599,3.90750476,2622.3,2622.2,1.38]
[1729225920600,7.49677476,2622.3,2622.2,1.38]
[1729225920802,3.99877,2622.3,2622.2,1.38]
[1729225920995,7.97075712,2622.3,2622.2,1.38]
[1729225921401,3.99877,2622.3,2622.2,1.38]
[1729225921598,0.38149,2622.2,2622.1,1.38]
[1729225922399,0.38149,2622.2,2622.1,1.7615]
[1729225922695,0.38149,2622.2,2622.1,1.38]
[1729225923298,0.38149,2622.2,2622.1,1.7615]
[1729225923500,0.38149,2622.2,2622.1,1.38]
[1729225924502,5.37878,2622.3,2622.1,1.7615]
[1729225924702,5.37877,2622.3,2622.2,1.38]
[1729225925106,3.99877,2622.3,2622.2,1.38]
[1729225926303,3.6173,2622.3,2622.2,1.76149]
[1729225927100,3.99877,2622.3,2622.2,1.76149]
[1729225927506,3.99877,2622.3,2622.2,1.38]
[1729225927708,3.99877,2622.3,2622.2,1.76149]
[1729225928296,3.6173,2622.3,2622.2,1.76149]
[1729225928502,4.38148712,2622.3,2622.2,1.76149]
[1729225928703,0.4095,2622.3,2622.2,1.76149]
[1729225931822,4.76295712,2622.3,2622.2,0.38149]
[1729225932218,4.76295712,2622.3,2622.2,1.76149]
[1729225932219,4.38148712,2622.3,2622.2,1.76149]
[1729225934523,3.97198712,2622.3,2622.2,1.76149]
[1729225936519,4.0367,2622.4,2622.3,0.38147]
[1729225936520,7.53890529,2622.4,2622.3,0.38147]
[1729225937019,7.92037529,2622.4,2622.3,0.38147]
[1729225937219,7.92037529,2622.4,2622.2,1.76147]
[1729225937420,7.92037529,2622.4,2622.3,0.38147]
[1729225938225,4.71257529,2622.4,2622.3,0.38147]
[1729225939328,4.33110529,2622.4,2622.3,1.76147]
[1729225941723,0.8289,2622.4,2622.3,1.76147]
[1729225941927,4.33110529,2622.4,2622.3,1.76147]
[1729225942738,0.8289,2622.4,2622.3,1.76147]
[1729225943140,0.8289,2622.4,2622.3,2.16737]
[1729225943539,4.80088712,2622.4,2622.3,2.16737]
[1729225946442,3.97198712,2622.4,2622.3,2.16737]
[1729225946943,4.37708712,2622.5,2622.4,0.38146]
[1729225947136,4.40765715,2622.5,2622.4,1.76146]
[1729225948138,4.40758703,2622.5,2622.4,1.76146]
[1729225948742,0.4051,2622.5,2622.4,1.76146]
[1729225949438,0.4051,2622.5,2622.4,0.38146]
[1729225949645,0.7964,2622.5,2622.4,1.76146]
[1729225950437,0.4051,2622.5,2622.4,1.76146]
[1729225950640,4.40744524,2622.5,2622.4,1.76146]
[1729225952542,0.4051,2622.5,2622.4,1.76146]
[1729225953144,7.97069285,2622.6,2622.5,0.38144]
[1729225953351,7.97069285,2622.6,2622.5,2.16304]
[1729225957142,4.46848551,2622.6,2622.5,2.16304]
[1729225961942,4.46848551,2622.6,2622.5,1.76144]
[1729225965260,8.47083075,2622.6,2622.5,1.76144]
[1729225965464,8.47083075,2622.6,2622.5,5.57424]
[1729225965656,8.47083075,2622.6,2622.5,11.57424]
[1729225970354,3.2078,2623.0,2622.9,0.38139]
[1729225970562,3.2078,2623.0,2622.9,1.76139]
[1729225970756,3.2078,2623.0,2622.9,5.57419]
[1729225971461,3.2078,2623.0,2622.9,11.57419]
[1729225972263,0.8176,2623.2,2622.9,11.1928]
[1729225972456,0.4127,2623.4,2623.0,0.3924]
[1729225972652,0.808,2623.4,2623.3,1.76133]
[1729225973168,0.808,2623.4,2623.3,5.57333]
[1729225973460,0.412,2623.5,2623.4,0.38131]
[1729225973859,0.412,2623.5,2623.4,1.38]
[1729225974068,4.0011,2623.5,2623.4,1.38]
[1729225975466,14.8118,2623.5,2623.0,0.38136]
[1729225975657,0.38131,2623.4,2623.3,1.38]
[1729225976066,0.38133,2623.3,2623.2,1.38]
[1729225976267,1.21003,2623.3,2623.2,1.38]
[1729225976866,1.21003,2623.3,2623.0,1.38]
[1729225976867,2.2087,2623.3,2623.0,1.38]
[1729225977161,0.38136,2623.1,2622.9,0.38139]
[1729225977357,0.4311,2623.0,2622.9,0.38139]
[1729225978762,0.4311,2623.0,2622.9,1.76139]
[1729225982672,0.4311,2623.0,2622.9,1.38]
[1729225982874,0.81247,2623.0,2622.9,1.38]
[1729225983471,0.4311,2623.0,2622.9,1.76139]
[1729225984272,4.02028,2623.0,2622.9,1.38]
[1729225984970,5.40028,2623.0,2622.9,1.38]
[1729225985163,5.40028,2623.0,2622.8,1.38]
[1729225985164,0.3814,2622.9,2622.8,1.38]
[1729225985371,1.1791,2622.9,2622.8,1.38]
[1729225985773,2.5591,2622.9,2622.8,1.38]
[1729225986269,2.5591,2622.9,2622.4,4.5878]
[1729225986270,0.38143,2622.6,2622.4,0.38145]
[1729225986484,0.38143,2622.6,2622.1,0.64536579]
[1729225986485,1.2179,2622.5,2622.1,0.64536579]
[1729225986674,1.2179,2622.5,2622.4,1.76146]
[1729225987674,5.08991606,2622.5,2622.4,1.38]
[1729225988782,1.59934,2622.5,2622.4,1.38]
[1729225991570,1.59934,2622.5,2622.4,1.76146]
[1729225991571,1.2179,2622.5,2622.4,1.76146]
[1729225998580,1.2179,2622.5,2622.4,3.14146]
[1729225998786,1.2179,2622.5,2622.4,1.76146]
[1729226003086,3.2078,2622.9,2622.4,1.38]
[1729226003289,0.417,2622.8,2622.7,0.38141]
[1729226003479,0.417,2622.8,2622.7,1.76141]
[1729226011283,1.797,2622.8,2622.6,0.38142]
[1729226011486,1.38,2622.7,2622.2,0.4043]
[1729226011688,1.38,2622.7,2622.5,1.76144]
[1729226011689,3.2078,2622.6,2622.5,1.76144]
[1729226013301,4.5878,2622.6,2622.5,1.76144]
[1729226014092,4.96924,2622.6,2622.1,1.17456221]
[1729226014297,2.6339,2622.5,2622.4,1.76146]
[1729226014496,1.2539,2622.5,2622.4,1.76146]
[1729226016187,2.6339,2622.5,2622.4,0.38146]
[1729226016393,1.2539,2622.5,2622.4,1.76146]
[1729226018201,12.4475,2622.5,2622.1,0.4224]
[1729226018410,12.4475,2622.5,2622.3,0.38147]
[1729226018411,1.38,2622.4,2622.3,0.38147]
[1729226018891,2.6339,2622.5,2622.3,1.76147]
[1729226019096,1.63535,2622.5,2622.4,0.38146]
[1729226019309,3.01535,2622.5,2622.4,0.38146]
[1729226019610,12.82894,2622.5,2622.4,0.38146]
[1729226019994,13.8275,2622.5,2621.8,4.16165]
[1729226020194,0.38147,2622.4,2622.3,0.38147]
[1729226020603,4.19507,2622.4,2622.3,0.38147]
[1729226021805,0.38148,2622.3,2622.2,0.38148]
[1729226022006,5.57508,2622.3,2622.2,0.38148]
[1729226022510,5.57508,2622.3,2622.1,1.38]
[1729226022712,1.7881,2622.2,2622.1,1.7615]
[1729226023594,11.6017,2622.2,2621.7,0.4212]
[1729226023800,11.6017,2622.2,2621.6,1.8036]
[1729226023801,1.38,2621.8,2621.6,1.8036]
[1729226024001,1.38,2621.8,2621.7,1.76156]
[1729226024700,1.38,2621.8,2621.7,1.38]
[1729226024900,1.38,2621.8,2621.7,1.76156]
[1729226028112,1.38,2621.8,2621.6,1.8036]
[1729226028302,1.776,2621.7,2621.6,2.18517]
[1729226028508,2.1687,2621.7,2621.6,2.18517]
[1729226029606,2.55026,2621.7,2621.6,0.4236]
[1729226029800,0.38157,2621.6,2621.4,0.38159]
[1729226030106,1.38,2621.5,2621.4,0.38159]
[1729226030309,0.38162,2621.3,2621.1,0.38164]
[1729226030604,2.2046,2621.2,2621.1,0.38164]
[1729226030810,2.598,2621.2,2621.1,0.38164]
[1729226031308,2.598,2621.2,2621.1,0.38165]
[1729226031512,0.38165,2621.1,2620.9,0.38167]
[1729226031702,1.38,2621.0,2620.9,0.38167]
[1729226032903,1.38,2621.0,2620.9,1.76167]
[1729226033105,5.57687,2621.0,2620.7,0.7836]
[1729226033307,1.38,2620.8,2620.7,2.1636]
[1729226034200,1.38,2620.8,2620.3,4.093]
[1729226034201,4.9695,2620.8,2620.3,4.093]
[1729226034400,1.2515,2620.7,2620.5,0.38173]
[1729226034611,1.63321,2620.7,2620.4,0.79404]
[1729226034814,1.63321,2620.7,2620.5,0.38173]
[1729226035306,0.38173,2620.6,2620.1,0.22209795]
[1729226035514,1.38,2620.2,2620.1,2.18459]
[1729226036303,1.38,2620.2,2620.1,0.80459]
[1729226037914,1.38,2620.2,2620.1,2.18459]
[1729226038115,3.2078,2620.5,2620.1,1.8028]
[1729226038314,1.38,2620.4,2620.3,1.76176]
[1729226038617,4.5878,2620.5,2620.4,0.38175]
[1729226038808,4.5878,2620.5,2620.4,1.76175]
[1729226039007,4.5878,2620.5,2620.4,0.38175]
[1729226040010,1.38,2620.5,2620.4,0.38175]
[1729226049216,1.38,2620.5,2620.4,1.76175]
[1729226049419,1.38,2620.7,2620.6,0.38172]
[1729226049620,1.38,2620.7,2620.6,1.76172]
[1729226049921,1.38,2620.7,2620.6,0.38172]
[1729226054121,1.38,2620.8,2620.6,1.38]
[1729226054423,1.38,2620.8,2620.7,1.76171]
[1729226055718,1.38,2620.8,2620.7,0.38171]
[1729226079234,1.38,2620.8,2620.5,0.3965]
[1729226079541,1.38,2620.6,2620.5,0.38174]
[1729226092248,1.76173,2620.6,2620.4,0.38174]
[1729226092448,0.8039,2620.5,2620.2,0.4263]
[1729226092656,1.38,2620.3,2620.2,0.80808]
[1729226094953,1.8058,2620.4,2620.2,1.8063]
[1729226095149,0.4258,2620.4,2620.3,0.38176]
[1729226095354,0.8039,2620.5,2620.4,0.38175]
[1729226095556,2.1839,2620.5,2620.4,0.38175]
[1729226098156,0.4211,2620.6,2620.4,1.38]
[1729226098353,0.3986,2620.8,2620.4,2.2106]
[1729226098551,1.38,2620.6,2620.5,2.17834]
[1729226099049,1.38,2620.6,2620.5,0.79834]
[1729226100057,1.38,2620.6,2620.5,0.38174]
[1729226105056,5.196,2620.6,2620.0,6.00514158]
[1729226105256,5.196,2620.6,2620.4,0.38174]
[1729226105257,0.8357,2620.5,2620.4,0.38174]
[1729226105563,2.2157,2620.5,2620.4,0.38174]
[1729226106262,2.59744,2620.5,2620.3,0.38175]
[1729226106465,1.7953,2620.4,2620.3,0.38175]
[1729226107358,1.7953,2620.4,2620.0,5.0054]
[1729226107553,1.38,2620.1,2620.0,5.38721]
[1729226107753,0.4153,2620.4,2620.0,5.0054]
[1729226107754,1.38,2620.2,2620.0,5.0054]
[1729226107956,1.38,2620.2,2620.1,0.38179]
[1729226109651,1.38,2620.2,2620.0,1.7976]
[1729226109652,2.76,2620.2,2620.0,0.3818]
[1729226109857,1.8053,2620.1,2619.6,0.99974158]
[1729226110058,0.4111,2620.0,2619.9,0.38182]
[1729226110367,4.00071,2620.0,2619.8,0.38183]
[1729226110553,3.6189,2620.0,2619.9,0.38182]
[1729226110749,3.6189,2620.0,2619.5,1.7691]
[1729226110965,3.6189,2620.0,2619.8,0.38183]
[1729226111355,1.38,2619.9,2619.8,0.38183]
[1729226116060,1.38,2619.9,2619.5,0.3891]
[1729226116261,1.38,2619.9,2619.3,1.04240248]
[1729226116262,1.38,2619.6,2619.3,0.64050248]
[1729226116469,3.2078,2619.7,2619.4,0.38188]
[1729226116470,0.4055,2619.5,2619.4,0.38188]
[1729226116658,0.7995,2619.5,2619.4,0.38188]
[1729226117454,2.1795,2619.5,2619.4,0.38188]
[1729226119053,13.3771,2619.5,2619.0,0.4081]
[1729226119260,1.38,2619.1,2619.0,0.79005]
[1729226120258,1.38,2619.1,2618.3,2.33512]
[1729226120259,8.4062,2619.1,2618.3,2.33512]
[1729226120564,3.2078,2618.8,2618.7,0.382]
[1729226121268,4.5878,2618.8,2618.7,0.382]
[1729226122568,3.2078,2618.8,2618.7,1.762]
[1729226122760,4.5878,2618.8,2618.7,1.762]
[1729226122962,4.5878,2618.8,2618.7,0.382]
[1729226126167,4.5878,2618.8,2618.4,0.65352481]
[1729226126379,1.38,2618.5,2618.4,0.80424]
[1729226127066,5.6265,2618.5,2618.2,3.2078]
[1729226127261,0.4122,2618.4,2618.3,0.38205]
[1729226127968,3.3922,2618.4,2618.3,0.38205]
[1729226128770,0.4122,2618.4,2618.3,0.38205]
[1729226128964,0.4036,2618.7,2618.6,0.38201]
[1729226129156,6.1878,2618.8,2618.7,0.382]
[1729226129362,6.6151,2618.8,2618.7,0.382]
[1729226129558,6.6151,2618.8,2618.2,3.2078]
[1729226129762,6.6151,2618.8,2618.6,0.382]
[1729226130767,6.6151,2618.8,2618.7,0.382]
[1729226130964,7.0273,2618.8,2618.7,0.382]
[1729226131564,7.40929,2618.8,2618.6,0.38201]
[1729226131765,7.40929,2618.8,2618.3,0.8238]
[1729226131967,7.40929,2618.8,2618.7,0.382]
[1729226132371,3.8195,2618.8,2618.7,0.382]
[1729226132570,7.0273,2618.8,2618.7,0.382]
[1729226132771,7.40928,2618.8,2618.7,0.382]
[1729226133675,4.20148,2618.8,2618.7,0.382]
[1729226134172,7.40928,2618.8,2618.7,0.382]
[1729226134773,7.0273,2618.8,2618.7,0.382]
[1729226138381,3.8195,2618.8,2618.7,0.382]
[1729226138576,7.0273,2618.8,2618.7,0.382]
[1729226141379,3.2078,2618.8,2618.7,0.382]
[1729226145191,3.36193,2619.2,2618.5,0.4168]
[1729226145385,3.36193,2619.2,2619.0,0.38195]
[1729226145592,3.6084,2619.1,2619.0,0.38195]
[1729226147084,3.99034,2619.1,2618.9,0.38196]
[1729226147384,3.3794,2619.0,2618.9,0.38196]
[1729226147586,3.7968,2619.0,2618.9,0.38196]
[1729226148181,4.6352,2619.0,2618.2,3.2078]
[1729226148390,6.1878,2618.6,2618.5,0.38203]
[1729226149186,3.6337,2618.6,2618.5,0.38203]
[1729226149888,5.0137,2618.6,2618.5,0.38203]
[1729226152383,1.8059,2618.6,2618.5,0.38203]
[1729226152587,5.0137,2618.6,2618.5,0.38203]
[1729226154381,1.8059,2618.6,2618.5,0.38203]
[1729226154598,3.2078,2618.7,2618.6,0.38201]
[1729226154892,3.2078,2618.7,2618.6,1.76201]
[1729226154893,4.5878,2618.7,2618.6,1.76201]
[1729226155089,4.5878,2618.7,2618.6,0.38201]
[1729226155498,4.5878,2618.7,2618.6,0.78821]
[1729226158394,1.38,2618.7,2618.6,0.78821]
[1729226158798,1.38,2618.7,2618.6,1.20201]
[1729226165904,3.6072,2618.9,2618.8,0.38198]
[1729226166105,6.3672,2618.9,2618.8,0.38198]
[1729226166291,4.9872,2618.9,2618.8,0.38198]
[1729226169197,1.38,2619.2,2619.1,0.38194]
[1729226169903,1.38,2619.2,2619.1,0.77464]
[1729226170404,1.38,2619.2,2619.1,2.15464]
[1729226170600,4.5878,2619.6,2619.5,0.38188]
[1729226170801,4.5878,2619.6,2619.5,1.76188]
[1729226170802,1.38,2619.6,2619.5,1.76188]
[1729226171007,1.38,2619.7,2619.6,0.38187]
[1729226171199,0.8105,2619.8,2619.7,0.38185]
[1729226171399,2.1905,2619.8,2619.7,1.76185]
[1729226172602,0.8105,2619.8,2619.7,0.38185]
[1729226172799,0.8105,2619.8,2619.7,1.76185]
[1729226172998,0.8105,2619.8,2619.7,2.17575]
[1729226173205,2.1905,2619.8,2619.7,2.17575]
[1729226174507,0.8105,2619.8,2619.7,2.17575]
[1729226178504,0.4176,2620.0,2619.9,0.38182]
[1729226178705,1.38,2620.2,2619.9,1.38]
[1729226178909,1.7976,2620.2,2620.1,0.38179]
[1729226179609,1.7976,2620.2,2620.1,1.76179]
[1729226179610,0.4176,2620.2,2620.1,1.76179]
[1729226180007,1.7976,2620.2,2620.1,1.76179]
[1729226183505,0.4176,2620.2,2620.1,1.76179]
[1729226184109,0.393,2620.3,2620.2,0.38178]
[1729226184306,0.393,2620.3,2620.2,1.76178]
[1729226193411,0.393,2620.3,2620.2,0.38178]
[1729226193712,0.393,2620.3,2620.2,1.76178]
[1729226195022,0.4074,2620.4,2620.3,0.38176]
[1729226195218,0.4074,2620.4,2620.3,1.76176]
[1729226202225,1.7874,2620.4,2620.3,1.76176]
[1729226202427,2.1807,2620.4,2620.3,1.76176]
[1729226202924,0.8007,2620.4,2620.3,0.38176]
[1729226203133,0.8007,2620.4,2620.3,1.76176]
[1729226203623,0.4074,2620.4,2620.3,1.76176]
[1729226204129,0.4229,2620.6,2620.3,1.76176]
[1729226204130,0.4229,2620.6,2620.3,1.38]
[1729226204427,0.8297,2620.6,2620.5,1.76174]
[1729226217734,2.2097,2620.6,2620.5,0.38174]
[1729226217929,2.2097,2620.6,2620.5,1.76174]
[1729226218137,0.8297,2620.6,2620.5,1.76174]
[1729226229842,3.6011,2620.9,2620.8,0.38169]
[1729226230043,1.7943,2620.8,2620.7,0.3817]
[1729226231838,0.4143,2620.8,2620.7,1.7617]
[1729226235936,0.7987,2620.9,2620.8,0.38169]
[1729226236140,0.7987,2620.9,2620.8,1.76169]
[1729226236543,0.4054,2620.9,2620.8,1.76169]
[1729226237844,0.3923,2621.0,2620.9,0.38168]
[1729226238046,2.97685085,2621.2,2620.9,1.7831]
[1729226238345,2.97685085,2621.2,2621.1,1.76165]
[1729226238544,0.4168,2621.3,2621.2,0.38163]
[1729226238545,4.77365085,2621.3,2621.2,0.38163]
[1729226238747,3.39365085,2621.3,2621.2,1.76163]
[1729226238953,0.4168,2621.3,2621.2,1.76163]
[1729226239147,3.36915085,2621.4,2621.2,1.38]
[1729226239346,3.36915085,2621.4,2621.3,1.76162]
[1729226239545,0.3923,2621.4,2621.3,1.76162]
[1729226241456,3.2078,2621.5,2621.4,0.3816]
[1729226241750,3.2078,2621.5,2621.4,1.7616]
[1729226245857,4.0314,2621.6,2621.5,0.38159]
[1729226246058,4.0314,2621.6,2621.5,1.76159]
[1729226246657,0.8236,2621.6,2621.5,1.76159]
[1729226246953,4.0314,2621.6,2621.5,1.76159]
[1729226247158,0.8236,2621.6,2621.5,1.76159]
[1729226247359,4.0314,2621.6,2621.5,1.76159]
[1729226249558,0.8236,2621.6,2621.5,1.76159]
[1729226249860,4.0314,2621.6,2621.5,1.76159]
[1729226254055,0.8236,2621.6,2621.5,1.76159]
[1729226254660,4.0314,2621.6,2621.5,1.76159]
[1729226255055,5.4114,2621.6,2621.5,1.76159]
[1729226255259,5.4114,2621.6,2621.5,0.38159]
[1729226255455,5.4114,2621.6,2621.5,1.76159]
[1729226255860,5.4114,2621.6,2621.5,1.38]
[1729226256071,5.4114,2621.6,2621.5,1.76159]
[1729226258266,5.4114,2621.6,2621.5,0.38159]
[1729226258766,5.4114,2621.6,2621.5,1.76159]
[1729226260272,2.2036,2621.6,2621.5,1.76159]
[1729226260775,0.8236,2621.6,2621.5,1.76159]
[1729226260966,4.0314,2621.6,2621.5,1.76159]
[1729226263168,4.0868,2622.2,2622.0,0.38151]
[1729226263362,0.8136,2622.1,2622.0,1.76151]
[1729226263561,4.6272,2622.1,2622.0,1.76151]
[1729226263766,0.8136,2622.1,2622.0,1.76151]
[1729226263968,4.6272,2622.1,2622.0,1.76151]
[1729226264163,0.8136,2622.1,2622.0,1.76151]
[1729226264363,4.6272,2622.1,2622.0,1.76151]
[1729226264567,5.0481,2622.1,2622.0,1.76151]
[1729226266667,1.2345,2622.1,2622.0,1.76151]
[1729226267067,2.6145,2622.1,2622.0,0.38151]
[1729226267371,2.99601,2622.1,2621.8,1.38]
[1729226267578,1.38,2622.0,2621.9,0.38152]
[1729226269278,5.8223,2622.1,2622.0,0.38152]
[1729226269966,6.2038,2622.1,2621.9,1.38]
[1729226270166,1.38,2622.0,2621.9,1.76153]
[1729226270965,5.8223,2622.1,2621.9,1.38]
[1729226271164,5.8223,2622.1,2622.0,0.38152]
[1729226271667,46.6223,2622.1,2622.0,0.38152]
[1729226273271,47.00381,2622.1,2621.9,0.38152]
[1729226273473,1.38,2622.0,2621.9,0.38152]
[1729226273781,1.76152,2622.0,2621.9,0.38152]
[1729226274071,1.38,2622.0,2621.9,0.38152]
[1729226275780,1.76152,2622.0,2621.9,0.38152]
[1729226275979,1.38,2622.0,2621.9,0.38152]
[1729226282974,50.11287606,2622.1,2622.0,0.38152]